fUST/lending_fUST_20260429
["ID","MTS","AMOUNT","RATE_DAILY","PERIOD"]
[421329262,1777444240910,-5000.0,8.053e-05,2]
[421329263,1777444240921,-533.0,8.053e-05,2]
[421329264,1777444240930,-5000.0,8.134e-05,2]
[421329265,1777444240940,-741.0,8.214e-05,2]
[421329266,1777444240949,-5000.0,8.216e-05,2]
[421329267,1777444240959,-151.0,8.299e-05,2]
[421329268,1777444240969,-33756.62944697,8.379e-05,2]
[421329269,1777444240979,-300.0,8.379e-05,2]
[421329270,1777444240988,-300.0,8.379e-05,2]
[421329271,1777444240998,-300.0,8.379e-05,2]
[421329272,1777444241008,-300.0,8.379e-05,2]
[421329273,1777444241017,-300.0,8.379e-05,2]
[421329274,1777444241026,-300.0,8.379e-05,2]
[421329275,1777444241036,-300.0,8.379e-05,2]
[421329276,1777444241045,-300.0,8.379e-05,2]
[421329277,1777444241054,-300.0,8.379e-05,2]
[421329278,1777444241064,-300.0,8.379e-05,2]
[421329279,1777444241074,-300.0,8.379e-05,2]
[421329280,1777444241084,-300.0,8.379e-05,2]
[421329281,1777444241095,-300.0,8.379e-05,2]
[421329282,1777444241106,-300.0,8.379e-05,2]
[421329283,1777444241116,-300.0,8.379e-05,2]
[421329284,1777444241125,-600.0,8.546e-05,2]
[421329285,1777444241134,-151.0,8.697e-05,2]
[421329286,1777444241144,-500.0,8.857e-05,2]
[421329287,1777444241154,-420.0,8.857e-05,2]
[421329289,1777444241163,-420.0,8.857e-05,2]
[421329290,1777444241173,-420.0,8.857e-05,2]
[421329291,1777444241183,-301.0,8.857e-05,2]
[421329292,1777444241193,-420.0,8.857e-05,2]
[421329293,1777444241203,-1680.0,8.857e-05,2]
[421329294,1777444241213,-318.79840182,8.857e-05,2]
[421329295,1777444241224,-500.0,8.857e-05,2]
[421329296,1777444241235,-500.0,8.857e-05,2]
[421329297,1777444241245,-500.0,8.857e-05,2]
[421329298,1777444241254,-500.0,8.857e-05,2]
[421329299,1777444241263,-500.0,8.857e-05,2]
[421329300,1777444241274,-500.0,8.857e-05,2]
[421329301,1777444241284,-463.05388026,8.857e-05,2]
[421329302,1777444241293,-500.0,8.857e-05,2]
[421329303,1777444241303,-500.0,8.857e-05,2]
[421329304,1777444241313,-500.0,8.857e-05,2]
[421329305,1777444241323,-500.0,8.857e-05,2]
[421329306,1777444241332,-500.0,8.857e-05,2]
[421329307,1777444241341,-500.0,8.857e-05,2]
[421329308,1777444241351,-500.0,8.857e-05,2]
[421329309,1777444241361,-408.39853744,8.857e-05,2]
[421329310,1777444241370,-500.0,8.857e-05,2]
[421329311,1777444241380,-500.0,8.857e-05,2]
[421329312,1777444241389,-500.0,8.857e-05,2]
[421329313,1777444241398,-500.0,8.857e-05,2]
[421329314,1777444241408,-500.0,8.857e-05,2]
[421329315,1777444241418,-500.0,8.857e-05,2]
[421329316,1777444241427,-500.0,8.857e-05,2]
[421329317,1777444241437,-275.06702716,8.857e-05,2]
[421329318,1777444241447,-500.0,8.857e-05,2]
[421329319,1777444241457,-500.0,8.857e-05,2]
[421329320,1777444241467,-500.0,8.857e-05,2]
[421329321,1777444241477,-500.0,8.857e-05,2]
[421329322,1777444241486,-500.0,8.857e-05,2]
[421329323,1777444241496,-500.0,8.857e-05,2]
[421329324,1777444241507,-500.0,8.857e-05,2]
[421329325,1777444241517,-500.0,8.857e-05,2]
[421329326,1777444241527,-500.0,8.857e-05,2]
[421329327,1777444241536,-500.0,8.857e-05,2]
[421329328,1777444241546,-500.0,8.857e-05,2]
[421329329,1777444241558,-500.0,8.857e-05,2]
[421329330,1777444241568,-500.0,8.857e-05,2]
[421329331,1777444241578,-500.0,8.857e-05,2]
[421329332,1777444241588,-500.0,8.857e-05,2]
[421329333,1777444241598,-500.0,8.857e-05,2]
[421329334,1777444241607,-500.0,8.857e-05,2]
[421329335,1777444241617,-500.0,8.857e-05,2]
[421329336,1777444241627,-500.0,8.857e-05,2]
[421329337,1777444241636,-500.0,8.857e-05,2]
[421329338,1777444241646,-500.0,8.857e-05,2]
[421329339,1777444241656,-500.0,8.857e-05,2]
[421329340,1777444241665,-500.0,8.857e-05,2]
[421329341,1777444241675,-500.0,8.857e-05,2]
[421329342,1777444241686,-500.0,8.857e-05,2]
[421329343,1777444241696,-500.0,8.857e-05,2]
[421329344,1777444241706,-500.0,8.857e-05,2]
[421329345,1777444241715,-500.0,8.857e-05,2]
[421329346,1777444241724,-500.0,8.857e-05,2]
[421329347,1777444241734,-500.0,8.857e-05,2]
[421329348,1777444241744,-500.0,8.857e-05,2]
[421329349,1777444241754,-500.0,8.857e-05,2]
[421329350,1777444241764,-500.0,8.857e-05,2]
[421329351,1777444241774,-500.0,8.857e-05,2]
[421329352,1777444241784,-500.0,8.857e-05,2]
[421329353,1777444241794,-500.0,8.857e-05,2]
[421329354,1777444241804,-500.0,8.857e-05,2]
[421329355,1777444241814,-500.0,8.857e-05,2]
[421329356,1777444241824,-500.0,8.857e-05,2]
[421329357,1777444241834,-500.0,8.857e-05,2]
[421329358,1777444241844,-500.0,8.857e-05,2]
[421329359,1777444241855,-500.0,8.857e-05,2]
[421329360,1777444241865,-500.0,8.857e-05,2]
[421329361,1777444241875,-500.0,8.857e-05,2]
[421329362,1777444241885,-500.0,8.857e-05,2]
[421329363,1777444241896,-500.0,8.857e-05,2]
[421329364,1777444241906,-193.41570814,8.857e-05,2]
[421329365,1777444241916,-500.0,8.857e-05,2]
[421329366,1777444241927,-500.0,8.857e-05,2]
[421329367,1777444241937,-500.0,8.857e-05,2]
[421329368,1777444241946,-500.0,8.857e-05,2]
[421329369,1777444241956,-500.0,8.857e-05,2]
[421329370,1777444241966,-500.0,8.857e-05,2]
[421329371,1777444241976,-500.0,8.857e-05,2]
[421329372,1777444241985,-500.0,8.857e-05,2]
[421329373,1777444241995,-500.0,8.857e-05,2]
[421329374,1777444242005,-329.33127076,8.857e-05,2]
[421329375,1777444242014,-500.0,8.857e-05,2]
[421329376,1777444242024,-423.39035899,8.857e-05,2]
[421329377,1777444242033,-500.0,8.857e-05,2]
[421329378,1777444242044,-500.0,8.857e-05,2]
[421329379,1777444242053,-500.0,8.857e-05,2]
[421329380,1777444242063,-500.0,8.857e-05,2]
[421329381,1777444242073,-500.0,8.857e-05,2]
[421329382,1777444242085,-500.0,8.857e-05,2]
[421329383,1777444242095,-500.0,8.857e-05,2]
[421329384,1777444242105,-500.0,8.857e-05,2]
[421329385,1777444242115,-500.0,8.857e-05,2]
[421329386,1777444242124,-500.0,8.857e-05,2]
[421329387,1777444242134,-500.0,8.857e-05,2]
[421329388,1777444242144,-500.0,8.857e-05,2]
[421329389,1777444242154,-500.0,8.857e-05,2]
[421329390,1777444242164,-500.0,8.857e-05,2]
[421329391,1777444242174,-500.0,8.857e-05,2]
[421329392,1777444242184,-500.0,8.857e-05,2]
[421329393,1777444242194,-500.0,8.857e-05,2]
[421329394,1777444242204,-500.0,8.857e-05,2]
[421329395,1777444242215,-500.0,8.857e-05,2]
[421329396,1777444242224,-500.0,8.857e-05,2]
[421329397,1777444242235,-500.0,8.857e-05,2]
[421329398,1777444242245,-500.0,8.857e-05,2]
[421329399,1777444242255,-500.0,8.857e-05,2]
[421329400,1777444242264,-500.0,8.857e-05,2]
[421329401,1777444242274,-500.0,8.857e-05,2]
[421329402,1777444242284,-500.0,8.857e-05,2]
[421329403,1777444242294,-500.0,8.857e-05,2]
[421329404,1777444242304,-500.0,8.857e-05,2]
[421329405,1777444242314,-500.0,8.857e-05,2]
[421329406,1777444242323,-500.0,8.857e-05,2]
[421329407,1777444242333,-500.0,8.857e-05,2]
[421329408,1777444242343,-500.0,8.857e-05,2]
[421329409,1777444242352,-500.0,8.857e-05,2]
[421329410,1777444242362,-500.0,8.857e-05,2]
[421329411,1777444242372,-500.0,8.857e-05,2]
[421329412,1777444242382,-500.0,8.857e-05,2]
[421329413,1777444242391,-500.0,8.857e-05,2]
[421329414,1777444242401,-500.0,8.857e-05,2]
[421329415,1777444242411,-385.80986139,8.857e-05,2]
[421329416,1777444242421,-500.0,8.857e-05,2]
[421329417,1777444242431,-500.0,8.857e-05,2]
[421329418,1777444242441,-500.0,8.857e-05,2]
[421329419,1777444242452,-500.0,8.857e-05,2]
[421329420,1777444242462,-500.0,8.857e-05,2]
[421329421,1777444242471,-500.0,8.857e-05,2]
[421329422,1777444242481,-500.0,8.857e-05,2]
[421329423,1777444242491,-500.0,8.857e-05,2]
[421329424,1777444242501,-500.0,8.857e-05,2]
[421329425,1777444242510,-500.0,8.857e-05,2]
[421329426,1777444242519,-500.0,8.857e-05,2]
[421329427,1777444242529,-500.0,8.857e-05,2]
[421329428,1777444242539,-500.0,8.857e-05,2]
[421329429,1777444242549,-500.0,8.857e-05,2]
[421329430,1777444242559,-500.0,8.857e-05,2]
[421329431,1777444242569,-500.0,8.857e-05,2]
[421329432,1777444242579,-500.0,8.857e-05,2]
[421329433,1777444242589,-500.0,8.857e-05,2]
[421329434,1777444242599,-500.0,8.857e-05,2]
[421329435,1777444242608,-500.0,8.857e-05,2]
[421329436,1777444242618,-217.15914307,8.857e-05,2]
[421329437,1777444242628,-500.0,8.857e-05,2]
[421329438,1777444242638,-500.0,8.857e-05,2]
[421329439,1777444242648,-500.0,8.857e-05,2]
[421329440,1777444242657,-500.0,8.857e-05,2]
[421329441,1777444242667,-500.0,8.857e-05,2]
[421329442,1777444242676,-500.0,8.857e-05,2]
[421329443,1777444242686,-500.0,8.857e-05,2]
[421329444,1777444242695,-500.0,8.857e-05,2]
[421329445,1777444242705,-500.0,8.857e-05,2]
[421329446,1777444242714,-650.0,8.857e-05,2]
[421329447,1777444242724,-151.0,8.963e-05,2]
[421329448,1777444242734,-500.0,9.131e-05,2]
[421329449,1777444242743,-720.0,9.4e-05,2]
[421329450,1777444242753,-500.0,9.405e-05,2]
[421329451,1777444242763,-500.0,9.679e-05,2]
[421329452,1777444242772,-587.0,9.743e-05,2]
[421329453,1777444242782,-182.0,9.743e-05,2]
[421329455,1777444242793,-587.0,9.743e-05,2]
[421329456,1777444242803,-587.0,9.743e-05,2]
[421329459,1777444242814,-2351.0,9.743e-05,2]
[421329461,1777444242824,-274.84563953,9.953e-05,2]
[421329463,1777444242834,-500.0,9.999e-05,2]
[421329464,1777444242844,-418.76813572,0.0001,2]
[421329465,1777444242854,-2419.62452871,0.0001,2]
[421329466,1777444242864,-625.74601195,0.00010052,2]
[421329467,1777444242874,-864.0,0.0001034,2]
[421329468,1777444242884,-301.0,0.00010717,2]
[421329470,1777444242895,-823.0,0.00010717,2]
[421329471,1777444242904,-603.0,0.00010717,2]
[421329472,1777444242914,-3292.0,0.00010717,2]
[421329473,1777444242924,-1000.0,0.00011374,2]
[421329474,1777444242934,-152.0,0.00011627,7]
[421329475,1777444242943,-1152.0,0.00011789,2]
[421329476,1777444242954,-4609.0,0.00011789,2]
[421329477,1777444242963,-5492.40143932,0.00012,2]
[421329478,1777444242973,-721.19879344,0.00012052,2]
[421329479,1777444242982,-245.16972554,0.000121,30]
[421329480,1777444242992,-941.2887278,0.000121,2]
[421329481,1777444243002,-261.1094685,0.000121,2]
[421329482,1777444243011,-1000.0,0.00012512,2]
[421329483,1777444243021,-244.0,0.00012512,2]
[421329484,1777444243031,-636.06443639,0.00012705,2]
[421329485,1777444243041,-163.3773257,0.000128,2]
[421329486,1777444243051,-151.0,0.00012863,2]
[421329487,1777444243060,-500.0,0.00012968,2]
[421329488,1777444243070,-1613.0,0.00012968,2]
[421329490,1777444243080,-720.0,0.00012968,2]
[421329492,1777444243090,-620.80322182,0.0001334,2]
[421329494,1777444243100,-500.0,0.0001365,2]
[421329495,1777444243111,-500.0,0.00013698,2]
[421329496,1777444243120,-500.0,0.00013698,2]
[421329497,1777444243130,-500.0,0.00013698,2]
[421329498,1777444243139,-500.0,0.00013698,2]
[421329499,1777444243150,-500.0,0.00013698,2]
[421329500,1777444243159,-500.0,0.00013698,2]
[421329501,1777444243169,-609.62077133,0.00013698,2]
[421329502,1777444243179,-500.0,0.00013698,2]
[421329503,1777444243188,-500.0,0.00013698,2]
[421329504,1777444243198,-500.0,0.00013698,2]
[421329505,1777444243209,-500.0,0.00013698,2]
[421329506,1777444243218,-500.0,0.00013698,2]
[421329507,1777444243229,-500.0,0.00013698,2]
[421329508,1777444243239,-500.0,0.00013698,2]
[421329509,1777444243249,-500.0,0.00013698,2]
[421329510,1777444243259,-507.31446116,0.00013698,2]
[421329511,1777444243269,-589.99145931,0.00013699,2]
[421329512,1777444243278,-1000.0,0.00013699,2]
[421329513,1777444243288,-1000.0,0.00013763,2]
[421329514,1777444243298,-492.0,0.00013763,2]
[421329515,1777444243308,-816.65157492,0.00014053,2]
[421329516,1777444243318,-500.0,0.00014264,2]
[421329517,1777444243328,-500.0,0.00014264,2]
[421329518,1777444243338,-294.0,0.00014265,2]
[421329519,1777444243348,-403.41609431,0.00014333,2]
[421329521,1777444243357,-1000.0,0.00015139,2]
[421329522,1777444243367,-791.0,0.00015139,2]
[421329523,1777444243376,-912.1043564,0.00016053,2]
[421329524,1777444243386,-5000.0,0.0001606,2]
[421329525,1777444243396,-163.37732569,0.0001632,2]
[421329526,1777444243407,-210.94,0.00016544,2]
[421329527,1777444243417,-1000.0,0.00016653,2]
[421329528,1777444243427,-1000.0,0.00016653,2]
[421329529,1777444243437,-316.41,0.00016937,2]
[421329530,1777444243447,-421.88,0.00017331,2]
[421329531,1777444243457,-280.63673365,0.00017671,3]
[421329532,1777444243468,-527.35,0.00017724,2]
[421329533,1777444243478,-1007.55713789,0.00018053,2]
[421329534,1777444243488,-632.82,0.00018118,2]
[421329535,1777444243498,-1011.5,0.00018135,2]
[421329536,1777444243508,-151.5,0.00018192,3]
[421329537,1777444243519,-151.5,0.00018192,3]
[421329538,1777444243529,-166.07022781,0.00018192,3]
[421329539,1777444243762,-183.25319559,0.00018192,3]
[421329540,1777444243772,-292.52238375,0.00018192,3]
[421329541,1777444243782,-500.0,0.00018192,3]
[421329542,1777444243792,-151.5,0.00018192,3]
[421329543,1777444243801,-500.0,0.00018192,3]
[421329544,1777444243811,-151.5,0.00018192,3]
[421329545,1777444243820,-500.0,0.00018192,3]
[421329546,1777444243830,-234.20137779,0.00018192,3]
[421329547,1777444243840,-500.0,0.00018192,3]
[421329548,1777444243850,-151.5,0.00018192,2]
[421329549,1777444243860,-473.31547581,0.00018192,3]
[421329550,1777444243870,-500.0,0.00018192,3]
[421329551,1777444243879,-500.0,0.00018192,3]
[421329552,1777444243889,-393.01507182,0.00018192,3]
[421329553,1777444243899,-161.27540849,0.00018192,3]
[421329554,1777444243908,-1011.5,0.00018305,2]
[421329555,1777444243918,-1000.0,0.00018318,2]
[421329556,1777444243928,-1000.0,0.00018318,2]
[421329557,1777444243938,-579.0,0.00018318,2]
[421329558,1777444243947,-1011.5,0.00018474,2]
[421329559,1777444243957,-738.29,0.00018511,2]
[421329560,1777444243966,-2000.0,0.00018569,7]
[421329561,1777444243976,-151.0,0.000186,2]
[421329562,1777444243985,-337.316545,0.0001862,2]
[421329563,1777444243995,-261.675866,0.0001862,2]
[421329564,1777444244005,-160.0,0.0001862,2]
[421329565,1777444244015,-196.134924,0.0001862,2]
[421329566,1777444244026,-232.269849,0.0001862,2]
[421329567,1777444244035,-189.002746,0.0001862,2]
[421329568,1777444244045,-1011.5,0.00018644,2]
[421329569,1777444244054,-2000.0,0.00018664,7]
[421329572,1777444244064,-2000.0,0.00018759,7]
[421329574,1777444244073,-151.0,0.000188,2]
[421329575,1777444244082,-1011.5,0.00018813,2]
[421329576,1777444244091,-2000.0,0.00018855,7]
[421329577,1777444244100,-375.0,0.00018868,2]
[421329578,1777444244110,-375.0,0.00018872,2]
[421329580,1777444244119,-1257.3043894,0.00018874,2]
[421329581,1777444244129,-151.0,0.000189,2]
[421329582,1777444244139,-2000.0,0.0001895,7]
[421329583,1777444244148,-500.0,0.00018973,2]
[421329584,1777444244158,-500.0,0.00018973,2]
[421329585,1777444244167,-162.380719,0.00018974,2]
[421329586,1777444244178,-449.02602927,0.00018974,2]
[421329587,1777444244188,-537.6845,0.00018974,2]
[421329588,1777444244198,-537.6845,0.00018974,2]
[421329589,1777444244208,-2150.738,0.00018974,2]
[421329590,1777444244218,-1011.5,0.00018983,5]
[421329591,1777444244227,-102388.80291231,0.00019,2]
[421329592,1777444244236,-151.0,0.00019,2]
[421329593,1777444244246,-151.0,0.00019,2]
[421329594,1777444244256,-231.164416,0.00019,2]
[421329595,1777444244266,-231.164416,0.00019,2]
[421329596,1777444244276,-231.164416,0.00019,2]
[421329597,1777444244286,-151.0,0.00019,2]
[421329598,1777444244296,-231.164416,0.00019,2]
[421329599,1777444244305,-169.326252,0.00019,2]
[421329600,1777444244314,-169.326252,0.00019,2]
[421329601,1777444244324,-169.326252,0.00019,2]
[421329602,1777444244334,-169.326252,0.00019,2]
[421329603,1777444244345,-151.0,0.00019,2]
[421329604,1777444244355,-193.0766,0.00019,2]
[421329605,1777444244364,-234.056952,0.00019,2]
[421329606,1777444244374,-234.056952,0.00019,2]
[421329607,1777444244384,-234.056952,0.00019,2]
[421329608,1777444244393,-234.056952,0.00019,2]
[421329609,1777444244403,-290.074909,0.00019,2]
[421329610,1777444244412,-290.074909,0.00019,2]
[421329611,1777444244422,-290.074909,0.00019,2]
[421329612,1777444244432,-290.074909,0.00019,2]
[421329613,1777444244442,-151.0,0.00019,2]
[421329614,1777444244452,-151.0,0.00019,2]
[421329615,1777444244462,-151.0,0.00019,2]
[421329616,1777444244471,-151.0,0.00019,2]
[421329617,1777444244481,-151.0,0.00019,2]
[421329618,1777444244490,-250.875046,0.00019,2]
[421329619,1777444244501,-152.30708,0.00019,2]
[421329620,1777444244510,-774.752226,0.00019,2]
[421329621,1777444244520,-774.752226,0.00019,2]
[421329622,1777444244529,-774.752226,0.00019,2]
[421329623,1777444244539,-774.752226,0.00019,2]
[421329624,1777444244548,-502.24094141,0.00019,5]
[421329625,1777444244558,-151.0,0.00019,2]
[421329626,1777444244567,-151.0,0.00019,2]
[421329627,1777444244578,-170.311945,0.00019,2]
[421329628,1777444244588,-5000.0,0.00019,2]
[421329629,1777444244597,-2577.515403,0.00019,2]
[421329630,1777444244607,-285.45063,0.00019,2]
[421329631,1777444244616,-379.517645,0.00019,2]
[421329632,1777444244626,-285.45063,0.00019,2]
[421329633,1777444244636,-151.0,0.00019,2]
[421329634,1777444244645,-379.517645,0.00019,2]
[421329635,1777444244655,-285.45063,0.00019,2]
[421329636,1777444244665,-379.517645,0.00019,2]
[421329637,1777444244674,-285.45063,0.00019,2]
[421329638,1777444244684,-151.0,0.00019,2]
[421329639,1777444244694,-379.517645,0.00019,2]
[421329640,1777444244704,-375.0,0.00019001,2]
[421329641,1777444244714,-557.5788265,0.00019029,2]
[421329642,1777444244725,-2000.0,0.00019046,7]
[421329643,1777444244735,-375.0,0.00019079,2]
[421329644,1777444244744,-195.77189227,0.00019084,2]
[421329645,1777444244754,-151.0,0.000191,2]
[421329646,1777444244764,-375.0,0.00019108,2]
[421329647,1777444244773,-2000.0,0.00019141,7]
[421329648,1777444244783,-1011.5,0.00019152,5]
[421329649,1777444244792,-675.7584,0.00019168,2]
[421329650,1777444244802,-675.7584,0.00019168,2]
[421329651,1777444244811,-675.7584,0.00019168,2]
[421329652,1777444244820,-675.7584,0.00019168,2]
[421329653,1777444244830,-300.0,0.00019178,2]
[421329654,1777444244839,-375.0,0.00019182,2]
[421329655,1777444244848,-2000.0,0.00019237,7]
[421329656,1777444244858,-5000.0,0.00019272,2]
[421329657,1777444244867,-151.0,0.000193,2]
[421329658,1777444244876,-1010.00091735,0.000193,2]
[421329659,1777444244885,-375.0,0.00019312,2]
[421329660,1777444244895,-1011.5,0.00019322,5]
[421329661,1777444244904,-375.0,0.00019324,2]
[421329662,1777444244914,-2000.0,0.00019332,7]
[421329663,1777444244923,-2000.0,0.00019427,7]
[421329664,1777444244933,-1011.5,0.00019491,5]
[421329665,1777444244943,-151.0,0.000195,2]
[421329666,1777444244952,-557.5788265,0.00019522,2]
[421329667,1777444244961,-2230.315306,0.00019522,2]
[421329668,1777444244970,-2000.0,0.00019523,7]
[421329669,1777444244980,-267.456715,0.00019551,2]
[421329670,1777444244989,-168.35015289,0.00019578,28]
[421329671,1777444244999,-375.0,0.00019592,2]
[421329672,1777444245009,-265.03733299,0.000196,2]
[421329673,1777444245020,-178.833,0.000196,2]
[421329674,1777444245030,-2000.0,0.00019618,7]
[421329675,1777444245039,-1011.5,0.00019661,5]
[421329676,1777444245048,-151.0,0.000197,2]
[421329677,1777444245058,-2384.01,0.000197,2]
[421329678,1777444245067,-2000.0,0.00019714,7]
[421329679,1777444245076,-1408.0,0.00019761,2]
[421329680,1777444245086,-185.0,0.00019761,2]
[421329681,1777444245095,-185.0,0.00019761,2]
[421329682,1777444245104,-442.0,0.00019761,2]
[421329683,1777444245114,-151.0,0.000198,2]
[421329684,1777444245123,-151.0,0.000198,2]
[421329685,1777444245133,-10000.0,0.000198,2]
[421329686,1777444245142,-2000.0,0.00019809,7]
[421329687,1777444245153,-375.0,0.00019815,2]
[421329688,1777444245162,-160.0,0.00019815,2]
[421329689,1777444245172,-1011.5,0.0001983,5]
[421329690,1777444245181,-163.37732569,0.00019839,2]
[421329691,1777444245191,-168.35015289,0.00019855,29]
[421329692,1777444245201,-204.0,0.00019863,3]
[421329693,1777444245211,-630.44405371,0.00019899,2]
[421329694,1777444245222,-500.0,0.00019899,2]
[421329695,1777444245233,-500.0,0.00019899,2]
[421329696,1777444245243,-500.0,0.00019899,2]
[421329697,1777444245253,-500.0,0.00019899,2]
[421329698,1777444245262,-500.0,0.00019899,2]
[421329699,1777444245272,-263.453871,0.000199,2]
[421329700,1777444245283,-263.453871,0.000199,2]
[421329701,1777444245294,-263.453871,0.000199,2]
[421329702,1777444245303,-162.379944,0.000199,2]
[421329703,1777444245312,-151.0,0.000199,2]
[421329704,1777444245322,-263.453871,0.000199,2]
[421329705,1777444245332,-162.379944,0.000199,2]
[421329706,1777444245341,-299.325771,0.000199,2]
[421329707,1777444245350,-151.0,0.000199,2]
[421329708,1777444245359,-162.379944,0.000199,2]
[421329709,1777444245368,-299.325771,0.000199,2]
[421329710,1777444245377,-151.0,0.000199,2]
[421329711,1777444245387,-162.379944,0.000199,2]
[421329712,1777444245396,-299.325771,0.000199,2]
[421329713,1777444245406,-277.00012,0.000199,2]
[421329714,1777444245415,-492.45,0.000199,2]
[421329715,1777444245426,-299.325771,0.000199,2]
[421329716,1777444245435,-492.45,0.000199,2]
[421329717,1777444245445,-492.45,0.000199,2]
[421329718,1777444245454,-492.45,0.000199,2]
[421329719,1777444245464,-151.0,0.000199,2]
[421329720,1777444245474,-206.110763,0.000199,2]
[421329721,1777444245484,-151.0,0.000199,2]
[421329722,1777444245493,-5560.51237818,0.000199,2]
[421329723,1777444245503,-1062.5204973,0.00019905,7]
[421329724,1777444245513,-151.0,0.00019906,2]
[421329725,1777444245523,-151.0,0.00019906,2]
[421329726,1777444245533,-774.752226,0.00019906,2]
[421329727,1777444245543,-774.752226,0.00019906,2]
[421329728,1777444245552,-774.752226,0.00019906,2]
[421329729,1777444245562,-774.752226,0.00019906,2]
[421329730,1777444245572,-151.0,0.00019906,2]
[421329731,1777444245581,-151.0,0.00019906,2]
[421329732,1777444245591,-285.45063,0.00019906,2]
[421329733,1777444245601,-379.517645,0.00019906,2]
[421329734,1777444245611,-285.45063,0.00019906,2]
[421329735,1777444245620,-151.292454,0.00019906,2]
[421329736,1777444245630,-379.517645,0.00019906,2]
[421329737,1777444245639,-285.45063,0.00019906,2]
[421329738,1777444245649,-379.517645,0.00019906,2]
[421329739,1777444245659,-285.45063,0.00019906,2]
[421329740,1777444245668,-151.0,0.00019906,2]
[421329741,1777444245678,-379.517645,0.00019906,2]
[421329742,1777444245688,-38000.0,0.00019906,3]
[421329743,1777444245698,-38000.0,0.00019915,3]
[421329744,1777444245707,-231.164416,0.00019915,2]
[421329745,1777444245717,-231.164416,0.00019915,2]
[421329746,1777444245726,-231.164416,0.00019915,2]
[421329747,1777444245736,-231.164416,0.00019915,2]
[421329748,1777444245746,-169.326252,0.00019915,2]
[421329749,1777444245756,-151.324683,0.00019915,2]
[421329750,1777444245765,-169.326252,0.00019915,2]
[421329751,1777444245775,-169.326252,0.00019915,2]
[421329752,1777444245785,-169.326252,0.00019915,2]
[421329753,1777444245796,-151.0,0.00019915,2]
[421329754,1777444245805,-234.056952,0.00019915,2]
[421329755,1777444245815,-234.056952,0.00019915,2]
[421329756,1777444245825,-234.056952,0.00019915,2]
[421329757,1777444245835,-234.056952,0.00019915,2]
[421329758,1777444245845,-290.074909,0.00019915,2]
[421329759,1777444245855,-290.074909,0.00019915,2]
[421329760,1777444245864,-290.074909,0.00019915,2]
[421329761,1777444245874,-290.074909,0.00019915,2]
[421329762,1777444245884,-151.0,0.00019915,2]
[421329763,1777444245894,-151.0,0.00019915,2]
[421329764,1777444245903,-151.0,0.00019915,2]
[421329765,1777444245912,-161.756472,0.00019915,2]
[421329766,1777444245923,-151.0,0.00019915,2]
[421329767,1777444245933,-151.0,0.00019915,2]
[421329768,1777444245942,-151.0,0.00019915,2]
[421329769,1777444245952,-151.0,0.00019915,2]
[421329770,1777444245962,-151.0,0.00019915,2]
[421329771,1777444245973,-588.824592,0.00019915,2]
[421329772,1777444245983,-588.824592,0.00019915,2]
[421329773,1777444245992,-151.0,0.00019915,2]
[421329774,1777444246002,-588.824592,0.00019915,2]
[421329775,1777444246012,-588.824592,0.00019915,2]
[421329776,1777444246021,-151.0,0.00019915,2]